bitfinex-derivatives/quotes_SOLF0:USTF0_20241002
["timestamp","ask_amount","ask_price","bid_price","bid_amount"]
[1727853305731,0.12502,148.01,147.99,8.31]
[1727853305932,0.12502,148.01,148.0,2.7031]
[1727853309936,0.12502,148.01,147.99,8.31]
[1727853310136,8.43502,148.01,147.97,1.2652]
[1727853310434,8.43502,148.01,147.95,8.31]
[1727853311033,2.7034,147.99,147.95,8.31]
[1727853311335,0.12502,148.01,147.98,8.31]
[1727853311638,0.12502,148.01,147.98,11.0133]
[1727853311836,0.12502,148.01,147.98,8.31]
[1727853312136,0.12502,148.01,147.99,8.31]
[1727853312434,0.12502,148.01,147.99,11.0132]
[1727853312938,0.12502,148.01,147.99,8.31]
[1727853313535,0.12502,148.01,147.99,11.0131]
[1727853317938,0.12502,148.01,147.98,8.31]
[1727853318144,0.12502,148.01,147.99,8.31]
[1727853318347,0.12502,148.01,147.99,11.0131]
[1727853322236,0.12502,148.01,148.0,11.0131]
[1727853323441,0.12502,148.07,148.06,2.702]
[1727853323739,0.12502,148.07,148.06,11.012]
[1727853324746,0.12502,148.07,148.03,8.31]
[1727853325047,8.43502,148.07,148.03,8.31]
[1727853325549,8.31,148.12,148.06,8.31]
[1727853325840,8.31,148.12,148.07,8.31]
[1727853326841,2.7013,148.1,148.07,8.31]
[1727853327042,2.7013,148.1,148.06,11.0119]
[1727853328243,11.0111,148.11,148.07,2.7016]
[1727853328450,8.31,148.12,148.08,8.31]
[1727853328945,11.011,148.12,148.08,11.0116]
[1727853329339,11.011,148.12,148.08,2.7016]
[1727853330042,8.31,148.11,148.08,2.7016]
[1727853332348,8.31,148.11,148.01,0.12502]
[1727853332349,8.31,148.1,148.01,0.12502]
[1727853332544,2.7014,148.09,148.05,11.012]
[1727853333049,8.31,148.06,148.01,0.12502]
[1727853333242,8.31,148.05,148.01,0.12502]
[1727853333646,11.0126,148.03,148.01,0.12502]
[1727853334346,8.31,148.03,148.01,0.12502]
[1727853334541,8.31,148.06,148.01,0.12502]
[1727853334748,8.31,148.06,148.02,8.31]
[1727853334948,8.31,148.06,148.02,11.0126]
[1727853335152,4.0818,148.07,148.03,8.31]
[1727853335153,11.0119,148.07,148.03,8.31]
[1727853335352,8.31,148.07,148.03,8.31]
[1727853335656,4.0595,148.08,148.04,2.7023]
[1727853336046,1.3578,148.08,148.04,2.7023]
[1727853337258,4.0595,148.08,148.04,2.7023]
[1727853337761,4.0595,148.08,148.03,11.0124]
[1727853337961,2.7018,148.07,148.03,11.0124]
[1727853339559,8.31,148.07,148.03,8.31]
[1727853339861,2.7021,148.06,148.02,8.31]
[1727853341372,2.7021,148.06,148.02,11.0127]
[1727853342263,2.7021,148.06,148.03,8.31]
[1727853342463,8.31,148.07,148.03,8.31]
[1727853342664,11.0118,148.07,148.03,11.0125]
[1727853343162,8.31,148.07,148.02,8.31]
[1727853343367,2.702,148.06,148.02,11.0126]
[1727853344570,2.7024,148.04,148.01,0.12502]
[1727853344765,8.31,148.04,148.01,0.12502]
[1727853344969,8.31,148.02,148.01,0.12502]
[1727853345169,11.0127,148.02,148.01,0.12502]
[1727853345369,8.31,147.99,147.95,0.12502]
[1727853345762,8.31,147.98,147.95,0.12502]
[1727853347470,2.7037,147.97,147.95,0.12502]
[1727853347966,2.7038,147.96,147.95,0.12502]
[1727853349068,11.0138,147.96,147.95,0.12502]
[1727853349676,2.7037,147.97,147.95,0.12502]
[1727853350271,2.7035,147.98,147.95,0.12502]
[1727853352169,1.3086,148.0,147.97,8.31]
[1727853352477,72.96,148.05,147.99,8.31]
[1727853352682,81.27,148.05,147.99,8.31]
[1727853353478,2.7026,148.03,147.99,11.0132]
[1727853354171,11.0126,148.03,147.99,2.7032]
[1727853355077,2.7027,148.02,147.99,2.7032]
[1727853356271,72.96,148.05,147.99,2.7032]
[1727853356477,2.7026,148.03,147.99,2.7032]
[1727853359774,12.97,148.03,147.96,1.2923]
[1727853360180,2.703,148.01,147.96,3.9959]
[1727853360583,2.703,148.01,147.95,0.12502]
[1727853360584,12.97,148.01,147.95,0.12502]
[1727853360776,2.7035,147.98,147.95,0.12502]
[1727853361179,2.7033,147.99,147.95,2.82902]
[1727853361979,1.3602,148.0,147.95,0.12502]
[1727853362686,1.3602,148.0,147.97,2.7035]
[1727853363184,1.3602,148.0,147.95,0.12502]
[1727853364587,12.97,147.99,147.95,0.12502]
[1727853364783,14.3295,147.99,147.95,0.12502]
[1727853364987,2.7037,147.97,147.95,0.12502]
[1727853366387,1.3595,147.99,147.95,0.12502]
[1727853366584,2.7035,147.98,147.95,0.12502]
[1727853367691,1.3595,147.99,147.95,0.12502]
[1727853367887,2.7037,147.97,147.95,0.12502]
[1727853369096,2.7038,147.96,147.95,0.12502]
[1727853370891,2.7046,147.92,147.89,0.12502]
[1727853371094,12.97,147.93,147.89,0.12502]
[1727853371295,1.2792,147.92,147.89,0.12502]
[1727853371695,2.7049,147.9,147.89,0.12502]
[1727853372591,12.97,147.9,147.83,0.12502]
[1727853372803,15.5494,147.92,147.83,0.12502]
[1727853373294,2.7052,147.89,147.85,2.7057]
[1727853373901,15.5494,147.92,147.83,0.12502]
[1727853374999,2.7055,147.87,147.83,2.83102]
[1727853375399,12.97,147.9,147.83,0.12502]
[1727853375698,2.7056,147.86,147.83,0.12502]
[1727853376291,2.7057,147.86,147.83,0.12502]
[1727853376493,12.97,147.9,147.83,0.12502]
[1727853378202,2.7055,147.87,147.83,2.83102]
[1727853379502,1.2555,147.91,147.83,0.12502]
[1727853379701,1.2555,147.91,147.85,12.97]
[1727853379894,1.45762,147.95,147.87,12.97]
[1727853380095,1.45762,147.95,147.91,2.7046]
[1727853380096,0.12502,147.95,147.91,2.7046]
[1727853380405,0.12502,147.95,147.89,12.97]
[1727853381599,0.12502,147.95,147.93,2.7043]
[1727853382595,0.12502,147.95,147.94,2.7042]
[1727853385106,0.12502,147.95,147.93,2.7043]
[1727853386300,0.12502,147.95,147.92,2.7044]
[1727853386505,0.12502,147.95,147.91,12.97]
[1727853387305,0.12502,147.95,147.92,2.7045]
[1727853387506,0.12502,147.95,147.91,12.97]
[1727853387909,0.12502,147.95,147.93,2.7042]
[1727853390201,0.12502,147.95,147.94,2.7042]
[1727853390606,2.6487,148.0,147.94,12.97]
[1727853390607,1.3074,148.0,147.94,12.97]
[1727853390812,0.12502,148.01,147.96,12.97]
[1727853391008,0.12502,148.01,147.94,12.97]
[1727853391212,0.12502,148.01,147.93,14.3243]
[1727853391509,0.12502,148.01,147.94,2.7041]
[1727853391706,0.12502,148.01,147.93,14.3243]
[1727853392010,12.97,148.0,147.93,2.7042]
[1727853392310,2.7036,147.97,147.93,2.7042]
[1727853393010,1.2833,147.99,147.92,12.97]
[1727853393609,2.82792,148.01,147.97,2.7035]
[1727853394198,2.7032,148.0,147.94,12.97]
[1727853394404,2.7032,148.0,147.96,2.7037]
[1727853394604,13.09502,148.01,147.92,12.97]
[1727853394799,1.2839,148.0,147.92,12.97]
[1727853396110,2.7035,147.98,147.91,79.97281166]
[1727853396611,12.97,147.98,147.91,79.97281166]
[1727853396907,12.97,147.98,147.91,92.94281166]
[1727853397108,16.9659,148.0,147.91,92.94281166]
[1727853397612,2.7035,147.98,147.94,2.704]
[1727853398611,2.7033,147.99,147.91,92.94281166]
[1727853399308,2.7033,147.99,147.95,2.7039]
[1727853401015,5.3142,148.0,147.96,2.7036]
[1727853401219,2.6111,148.0,147.96,2.7036]
[1727853401711,2.7033,147.99,147.96,2.7036]
[1727853402009,2.6111,148.0,147.96,2.7036]
[1727853402224,5.3142,148.0,147.97,2.7035]
[1727853403015,2.7032,147.99,147.96,2.7037]
[1727853403813,2.7032,147.99,147.95,2.7039]
[1727853404421,2.7035,147.98,147.95,2.7039]
[1727853404719,2.7035,147.98,147.94,2.7041]
[1727853406122,2.7039,147.96,147.92,2.7044]
[1727853406819,2.7041,147.95,147.91,82.67741166]
[1727853407419,12.97,147.97,147.91,79.97281166]
[1727853408124,2.704,147.95,147.91,82.67741166]
[1727853408724,12.97,147.97,147.91,82.67741166]
[1727853409319,2.7041,147.95,147.91,82.67741166]
[1727853409515,2.7041,147.95,147.92,2.7045]
[1727853410124,2.7037,147.97,147.93,2.7043]
[1727853410321,3.9775,148.0,147.91,92.94281166]
[1727853410626,3.9775,148.0,147.94,2.704]
[1727853410627,2.7036,147.98,147.94,2.704]
[1727853410826,3.9775,148.0,147.91,92.94281166]
[1727853411424,2.7038,147.97,147.93,2.7042]
[1727853411611,12.97,147.99,147.93,2.7042]
[1727853412514,2.7041,147.95,147.91,79.97281166]
[1727853412710,2.7041,147.95,147.92,2.7044]
[1727853412920,12.97,147.99,147.91,79.97281166]
[1727853413126,2.7037,147.97,147.91,82.67741166]
[1727853413313,12.97,147.99,147.91,79.97281166]
[1727853414220,12.97,147.99,147.92,2.7045]
[1727853414924,2.7041,147.95,147.92,2.7045]
[1727853415419,2.7041,147.95,147.91,79.97281166]
[1727853415420,2.7041,147.95,147.91,82.67741166]
[1727853419122,2.7042,147.94,147.91,82.67741166]
[1727853420330,2.7041,147.95,147.91,82.67741166]
[1727853422429,2.7037,147.97,147.93,2.7043]
[1727853422628,2.6111,148.0,147.91,92.94281166]
[1727853422924,1.2839,148.0,147.92,14.3198]
[1727853423129,2.7034,147.99,147.95,2.7039]
[1727853423632,2.7034,147.99,147.95,11.0139]
[1727853424129,9.5939,148.0,147.96,8.31]
[1727853424130,1.2839,148.0,147.96,8.31]
[1727853424323,0.12502,148.01,147.99,8.31]
[1727853424529,0.12502,148.01,148.0,8.31]
[1727853424727,0.12502,148.01,148.0,11.0131]
[1727853425531,0.12502,148.01,148.0,2.7031]
[1727853425735,2.702,148.06,147.99,12.97]
[1727853425932,12.97,148.06,147.98,2.5118]
[1727853426835,2.7024,148.04,147.99,2.7032]
[1727853428741,2.7024,148.04,148.0,2.703]
[1727853429145,2.7024,148.04,147.99,2.7032]
[1727853429635,2.7024,148.04,147.98,2.5118]
[1727853431244,12.97,148.06,147.98,2.5118]
[1727853431449,2.7017,148.08,148.01,12.97]
[1727853431948,5.2703,148.09,148.04,2.7022]
[1727853432149,1.2922,148.09,148.01,12.97]
[1727853432545,2.7018,148.08,148.03,2.7024]
[1727853432845,13.09502,148.07,147.99,12.97]
[1727853433047,2.7021,148.06,148.02,2.7026]
[1727853433247,13.09502,148.07,147.99,12.97]
[1727853433644,2.7022,148.05,148.01,2.7028]
[1727853434454,2.7023,148.04,148.0,2.703]
[1727853435345,13.09502,148.07,147.99,2.7031]
[1727853435846,13.09502,148.07,147.98,2.5118]
[1727853436042,2.7023,148.05,148.01,2.7029]
[1727853436349,13.09502,148.07,147.98,2.5118]
[1727853436653,2.7024,148.04,148.0,2.7029]
[1727853437939,13.09502,148.07,147.98,2.5118]
[1727853438138,13.09502,148.07,147.99,12.97]
[1727853438349,0.12502,148.07,147.99,12.97]
[1727853438948,2.82692,148.07,148.03,2.7024]
[1727853439751,0.12502,148.07,148.04,2.7023]
[1727853440639,0.12502,148.07,148.01,12.97]
[1727853440848,0.12502,148.07,148.05,2.7021]
[1727853441242,0.12502,148.07,148.06,2.702]
[1727853442451,86.07502,148.13,148.05,12.97]
[1727853442752,2.701,148.12,148.05,12.97]
[1727853442955,13.09502,148.13,148.06,2.7019]
[1727853443951,2.7011,148.11,148.06,2.7019]
[1727853444650,2.7013,148.1,148.06,2.7019]
[1727853446359,12.97,148.11,148.04,5.96155117]
[1727853447454,15.6711,148.11,148.07,2.7017]
[1727853447764,2.7011,148.11,148.07,2.7017]
[1727853447967,15.79592,148.13,148.08,2.7015]
[1727853448160,13.09502,148.13,148.08,2.7015]
[1727853449160,2.701,148.12,148.08,2.7015]
[1727853449569,2.7011,148.11,148.08,2.7015]
[1727853449864,12.97,148.12,148.04,2.5832]
[1727853450064,2.7021,148.06,148.04,2.5832]
[1727853450274,12.97,148.1,148.04,1.2646]
[1727853450755,2.7017,148.08,148.04,1.2646]
[1727853450960,12.97,148.1,148.05,2.702]
[1727853451464,2.7017,148.08,148.05,2.702]
[1727853452559,2.7017,148.08,148.05,2.7021]
[1727853452760,2.7015,148.09,148.04,1.2646]
[1727853453066,0.12502,148.13,148.04,4.69824289]
[1727853453270,0.12502,148.13,148.04,1.2646]
[1727853453970,0.12502,148.13,148.07,2.7017]
[1727853455166,0.12502,148.13,148.04,1.2646]
[1727853455471,2.7012,148.1,148.04,4.61110145]
[1727853455669,0.12502,148.13,148.05,12.97]
[1727853455864,2.7011,148.11,148.09,2.7014]
[1727853456769,2.7011,148.11,148.05,12.97]
[1727853457070,2.7011,148.11,148.08,2.7015]
[1727853457862,0.12502,148.13,148.05,12.97]
[1727853458977,2.701,148.12,148.09,2.7013]
[1727853459273,0.12502,148.13,148.08,12.97]
[1727853459963,0.12502,148.13,148.1,2.7011]
[1727853460365,0.12502,148.13,148.08,12.97]
[1727853460775,0.12502,148.13,148.09,2.7013]
[1727853460974,0.12502,148.13,148.08,12.97]
[1727853461475,0.12502,148.13,148.11,2.7009]
[1727853461675,0.12502,148.13,148.08,12.97]
[1727853461875,0.12502,148.13,148.1,2.7012]
[1727853463074,0.12502,148.13,148.08,12.97]
[1727853463374,0.12502,148.13,148.11,2.701]
[1727853463970,0.12502,148.13,148.12,2.7009]
[1727853464368,0.12502,148.19,148.11,1.2851]
[1727853464569,2.82472,148.19,148.16,2.7001]
[1727853465977,0.12502,148.19,148.13,1.2758]
[1727853466176,0.12502,148.19,148.17,2.6999]
[1727853466480,0.12502,148.19,148.13,1.2758]
[1727853466876,2.82482,148.19,148.14,2.7004]
[1727853467070,0.12502,148.19,148.13,1.2758]
[1727853467271,0.12502,148.19,148.13,4.7013872]
[1727853467472,2.82472,148.19,148.16,2.7001]
[1727853468080,0.12502,148.19,148.18,2.6998]
[1727853469865,2.6987,148.24,148.19,2.6994]
[1727853472181,0.12502,148.25,148.18,12.97]
[1727853472382,2.82362,148.25,148.2,2.6993]
[1727853472785,0.12502,148.25,148.2,2.6993]
[1727853473377,2.6988,148.24,148.2,2.6993]
[1727853474078,2.6989,148.23,148.19,2.6995]
[1727853474284,0.12502,148.25,148.18,12.97]
[1727853474877,2.6988,148.24,148.2,2.6993]
[1727853475083,2.6988,148.24,148.18,12.97]
[1727853475286,2.6988,148.24,148.2,2.6993]
[1727853475877,2.6988,148.24,148.18,12.97]
[1727853476076,2.6988,148.24,148.2,2.6993]
[1727853476882,0.12502,148.25,148.17,1.3604]
[1727853477091,2.6993,148.21,148.17,4.0603]
[1727853479778,2.6995,148.2,148.16,2.7]
[1727853480086,12.97,148.24,148.15,12.97]
[1727853480987,2.6995,148.2,148.16,2.7]
[1727853481504,2.6995,148.2,148.17,2.6999]
[1727853481997,2.6995,148.2,148.15,12.97]
[1727853482398,2.6993,148.21,148.15,12.97]
[1727853484397,2.6993,148.21,148.17,2.6998]
[1727853485601,2.6993,148.21,148.18,8.29]
[1727853487802,2.6998,148.19,148.15,2.7003]
[1727853487998,2.6998,148.19,148.15,10.9903]
[1727853488699,8.29,148.2,148.15,10.9903]
[1727853488900,2.6998,148.18,148.15,10.9903]
[1727853490002,8.29,148.2,148.15,10.9903]
[1727853490206,2.6996,148.19,148.15,10.9903]
[1727853491306,2.6995,148.2,148.17,8.29]
[1727853493008,1.3268,148.22,148.19,8.29]
[1727853493198,1.3268,148.22,148.21,8.29]
[1727853493396,2.6989,148.23,148.21,10.9892]
[1727853493597,2.6989,148.23,148.21,8.29]
[1727853493906,0.12502,148.25,148.21,8.29]
[1727853494106,2.699,148.22,148.2,10.9894]
[1727853494308,2.699,148.22,148.2,8.29]
[1727853494705,2.699,148.22,148.2,10.9894]
[1727853496009,0.12502,148.25,148.21,8.29]
[1727853496213,0.12502,148.25,148.23,8.29]
[1727853496902,8.29,148.24,148.13,6.16498297]
[1727853497102,8.29,148.24,148.18,8.29]
[1727853497905,8.29,148.24,148.2,2.6994]
[1727853498703,8.29,148.24,148.19,10.9895]
[1727853498905,8.29,148.24,148.19,8.29]
[1727853499221,8.29,148.23,148.18,8.29]
[1727853499509,8.29,148.23,148.18,10.9897]
[1727853499510,2.6994,148.21,148.18,10.9897]
[1727853503403,8.29,148.23,148.18,10.9897]
[1727853503609,2.6991,148.22,148.18,10.9897]
[1727853504210,2.6991,148.22,148.19,10.9896]
[1727853506311,2.6988,148.24,148.21,8.29]
[1727853506514,0.12502,148.25,148.22,8.29]
[1727853506720,0.12502,148.25,148.23,8.29]
[1727853506906,0.12502,148.25,148.23,10.9889]
[1727853508310,0.12502,148.25,148.24,10.9887]
[1727853509308,0.12502,148.25,148.24,8.29]
[1727853510217,2.82352,148.25,148.24,8.29]
[1727853510818,2.82352,148.25,148.22,10.989]
[1727853511117,2.6988,148.24,148.21,8.29]
[1727853512317,0.12502,148.25,148.21,8.29]
[1727853512518,2.699,148.23,148.21,8.29]
[1727853513021,2.699,148.23,148.2,8.29]
[1727853513519,2.6995,148.2,148.17,2.6999]
[1727853513825,2.6995,148.2,148.18,8.29]
[1727853514018,8.29,148.23,148.18,8.29]
[1727853514320,2.6993,148.21,148.18,8.29]
[1727853514622,8.29,148.23,148.18,8.29]
[1727853515211,2.6994,148.21,148.18,8.29]
[1727853517121,2.6994,148.21,148.18,10.9898]
[1727853519620,2.6994,148.21,148.18,8.29]
[1727853521216,0.12502,148.25,148.18,8.29]
[1727853521421,0.12502,148.25,148.21,8.29]
[1727853521929,2.82362,148.25,148.22,2.699]
[1727853524632,0.12502,148.25,148.22,2.699]
[1727853524932,2.6987,148.24,148.22,2.699]
[1727853525327,2.6987,148.24,148.21,10.9892]
[1727853525626,2.6989,148.23,148.2,8.29]
[1727853525831,2.6989,148.23,148.2,10.9893]
[1727853526021,2.6989,148.23,148.2,8.29]
[1727853526217,2.6988,148.24,148.2,8.29]
[1727853526434,2.6988,148.24,148.21,2.6992]
[1727853526729,0.12502,148.25,148.22,8.29]
[1727853527734,8.41502,148.25,148.2,8.29]
[1727853528530,2.699,148.22,148.2,8.29]
[1727853528922,2.699,148.22,148.19,10.9895]
[1727853531928,8.29,148.23,148.13,6.16498297]
[1727853532128,2.6995,148.2,148.17,8.29]
[1727853532327,8.29,148.21,148.16,8.29]
[1727853532527,8.29,148.2,148.15,8.29]
[1727853532934,2.6997,148.19,148.15,10.9902]
[1727853533630,2.6997,148.19,148.15,8.29]
[1727853533835,2.6997,148.19,148.16,2.7001]
[1727853534837,2.6997,148.19,148.16,10.9901]
[1727853536333,2.6999,148.18,148.16,8.29]
[1727853538938,8.29,148.21,148.16,8.29]
[1727853539132,8.29,148.18,148.14,8.29]
[1727853539634,2.7,148.17,148.14,2.7004]
[1727853539834,8.29,148.18,148.13,0.12502]
[1727853540140,8.29,148.18,148.13,8.41502]
[1727853540444,2.7003,148.15,148.13,8.41502]
[1727853540638,8.29,148.17,148.13,8.41502]
[1727853540934,8.29,148.18,148.14,8.29]
[1727853541731,2.6997,148.19,148.16,2.7001]
[1727853541930,4.6889306,148.24,148.16,2.7001]
[1727853541931,8.29,148.21,148.16,2.7001]
[1727853542335,8.29,148.21,148.15,8.29]
[1727853542530,8.29,148.2,148.15,10.9903]
[1727853542731,8.29,148.2,148.14,8.29]
[1727853543038,2.7001,148.17,148.14,10.9905]
[1727853543242,8.29,148.2,148.14,8.29]
[1727853543441,8.29,148.2,148.15,8.29]
[1727853543940,2.6999,148.18,148.15,10.9902]
[1727853544240,8.29,148.19,148.13,8.41502]
[1727853544429,8.29,148.17,148.13,0.12502]
[1727853544635,8.29,148.16,148.13,0.12502]
[1727853544934,1.3361,148.19,148.13,0.12502]
[1727853544935,2.7005,148.14,148.13,0.12502]
[1727853545638,10.9905,148.14,148.13,0.12502]
[1727853546336,2.7005,148.14,148.13,0.12502]
[1727853547040,2.7004,148.15,148.13,0.12502]
[1727853547443,8.29,148.16,148.13,0.12502]
[1727853547945,2.7005,148.14,148.13,0.12502]
[1727853549643,2.6622,148.18,148.13,0.12502]
[1727853549850,1.3361,148.19,148.14,8.29]
[1727853550041,1.3361,148.19,148.15,8.29]
[1727853550239,4.0358,148.19,148.16,2.7001]
[1727853550441,8.29,148.21,148.16,8.29]
[1727853551542,75.5697,148.23,148.16,12.96]
[1727853551940,2.6995,148.2,148.17,2.6999]
[1727853552140,75.5697,148.23,148.17,2.6999]
[1727853552344,88.5297,148.23,148.17,2.6999]
[1727853552846,15.6297,148.23,148.17,2.6999]
[1727853553035,2.6992,148.22,148.17,2.6999]
[1727853553238,15.6297,148.23,148.17,2.6999]
[1727853554249,2.6996,148.2,148.15,1.2998]
[1727853554445,12.96,148.21,148.13,0.12502]
[1727853554652,12.96,148.19,148.13,0.12502]
[1727853554846,2.7004,148.15,148.13,0.12502]
[1727853555451,2.7005,148.14,148.13,0.12502]
[1727853560156,2.7004,148.15,148.13,0.12502]
[1727853560763,2.7005,148.14,148.13,0.12502]
[1727853571678,10.9905,148.14,148.13,0.12502]
[1727853578578,2.7005,148.14,148.13,0.12502]
[1727853578775,1.332,148.17,148.13,8.41502]
[1727853578776,8.29,148.17,148.13,8.41502]
[1727853578975,8.29,148.17,148.13,0.12502]
[1727853579380,8.29,148.16,148.13,0.12502]
[1727853579579,2.7005,148.14,148.13,0.12502]
[1727853579978,10.9905,148.14,148.13,0.12502]
[1727853582973,2.7015,148.09,148.06,2.7019]
[1727853585277,2.7015,148.09,148.05,10.9921]
[1727853585479,2.7016,148.08,148.07,139.81002]
[1727853585685,10.9916,148.08,148.07,139.81002]
[1727853595288,2.7016,148.08,148.07,139.81002]
[1727853595596,10.9916,148.08,148.07,139.81002]
[1727853596685,2.7016,148.08,148.07,139.81002]
[1727853596902,10.9916,148.08,148.07,139.81002]
[1727853603095,2.7016,148.08,148.07,139.81002]
[1727853603293,10.9916,148.08,148.07,139.81002]
[1727853606195,10.9916,148.08,148.07,51.27602]
[1727853606495,14.42976638,148.08,148.07,51.27602]
[1727853607489,14.42976638,148.08,148.07,49.19372]
[1727853607785,2.7016,148.08,148.07,16.40127268]
[1727853607986,10.9916,148.09,148.07,16.40127268]
[1727853608592,8.29,148.09,148.07,16.40127268]
[1727853608795,10.9916,148.08,148.07,16.40127268]
[1727853609304,10.9916,148.08,148.02,1.7609]
[1727853609305,8.29,148.08,148.02,1.7609]
[1727853609495,10.9925,148.03,148.02,0.5029]
[1727853613097,10.9925,148.03,148.01,0.12502]
[1727853613098,2.7027,148.02,148.01,0.12502]
[1727853614099,10.9927,148.02,148.01,0.12502]
[1727853617703,2.7036,147.97,147.96,1.3478]
[1727853617900,8.29,147.97,147.96,1.3478]
[1727853618102,3.39424603,148.06,147.96,9.6378]
[1727853618410,8.29,148.04,147.99,8.29]
[1727853618608,8.29,148.04,147.96,1.3478]
[1727853618609,8.29,148.05,148.0,9.6018]
[1727853618908,8.29,148.05,148.01,10.8765]
[1727853619106,8.41502,148.07,148.01,10.8765]
[1727853619295,8.41502,148.07,148.02,8.29]
[1727853619296,2.702,148.06,148.02,8.29]
[1727853619696,0.12502,148.07,148.03,8.29]
[1727853620800,2.7021,148.06,148.03,2.7025]
[1727853621001,8.41502,148.07,148.02,8.29]
[1727853621907,2.7022,148.05,148.02,10.9926]
[1727853623403,8.41502,148.07,148.02,8.29]
[1727853623604,8.29,148.05,148.01,2.5865]
[1727853623805,8.29,148.03,148.01,2.5865]
[1727853624602,8.29,148.02,148.0,1.3118]
[1727853624798,8.29,148.01,147.96,1.2522]
[1727853625003,2.7036,147.98,147.96,2.5878]
[1727853625415,8.29,147.97,147.96,2.5878]
[1727853625606,10.9936,147.97,147.96,2.5878]
[1727853626205,2.7038,147.96,147.95,0.12502]
[1727853626406,10.9938,147.96,147.95,0.12502]
[1727853627515,15.6938,147.96,147.95,0.12502]
[1727853637420,2.7047,147.91,147.9,2.5878]
[1727853638513,12.99,147.91,147.89,0.12502]
[1727853638822,2.7049,147.9,147.89,0.12502]
[1727853640916,15.6949,147.91,147.89,0.12502]
[1727853641118,12.99,147.91,147.89,0.12502]
[1727853641815,12.99,147.94,147.89,0.12502]
[1727853642319,2.7047,147.91,147.89,0.12502]
[1727853643513,2.7045,147.93,147.89,2.82992]
[1727853644017,12.99,147.95,147.89,0.12502]
[1727853644321,2.7042,147.94,147.9,4.0351]
[1727853644518,2.7042,147.94,147.91,1.3848]
[1727853645019,2.7043,147.94,147.91,1.3848]
[1727853645219,2.7043,147.94,147.91,4.0894]
[1727853645824,86.01,147.97,147.91,1.3848]
[1727853646117,3.31846449,148.0,147.94,2.704]
[1727853646419,13.11502,148.01,147.91,14.3748]
[1727853646616,2.7038,147.97,147.93,2.7043]
[1727853646825,3.29974854,148.0,147.93,2.7043]
[1727853647122,2.7039,147.96,147.93,2.7043]
[1727853647325,12.99,147.97,147.91,1.3848]
[1727853647722,12.99,147.95,147.91,1.3848]
[1727853648020,2.7045,147.92,147.91,1.3848]
[1727853648423,12.99,147.95,147.9,1.3304]
[1727853648722,2.7049,147.9,147.89,0.12502]
[1727853651822,12.99,147.92,147.89,0.12502]
[1727853652123,2.7048,147.91,147.89,0.12502]
[1727853652320,16.45201463,147.94,147.89,2.83002]
[1727853652518,78.55092,148.01,147.89,2.83002]
[1727853652827,12.99,147.98,147.93,2.7042]
[1727853653326,12.99,147.98,147.91,12.99]
[1727853653624,12.99,147.98,147.92,2.6287]
[1727853653824,2.7037,147.97,147.92,2.6287]
[1727853654040,12.99,147.98,147.92,2.6287]
[1727853654623,2.7039,147.96,147.92,2.6287]